[Event "Božićni turnir u VaraždinskimToplicama 26.12.2025."]
[Site "Varazdinske Toplice, Croatia"]
[Date "2025.12.26"]
[Round "2.13"]
[White "Sardi, Darko"]
[Black "Mundja, Zlatko"]
[Result "1-0"]
[TimeControl "10"]
[WhiteFideId "14511100"]
[BlackFideId "14593971"]
[WhiteElo "1905"]
[BlackElo "1479"]

1. e4 {[%clk 00:09:57]} {[%emt 00:00:03]} d5 {[%clk 00:09:59]} {[%emt
00:00:02]} 2. exd5 {[%clk 00:09:55]} {[%emt 00:00:01]} Qxd5 {[%clk 00:09:58]}
{[%emt 00:00:02]} 3. Nc3 {[%clk 00:09:54]} {[%emt 00:00:01]} Qd6 {[%clk
00:09:57]} 4. Nf3 {[%clk 00:09:49]} {[%emt 00:00:05]} Nf6 {[%clk 00:09:56]}
{[%emt 00:00:01]} 5. d4 {[%clk 00:09:47]} a6 {[%clk 00:09:55]} {[%emt
00:00:01]} 6. Be2 {[%clk 00:09:46]} {[%emt 00:00:02]} b5 {[%clk 00:09:53]}
{[%emt 00:00:01]} 7. O-O {[%clk 00:09:41]} {[%emt 00:00:05]} Bb7 {[%clk
00:09:52]} {[%emt 00:00:02]} 8. h3 {[%clk 00:09:37]} {[%emt 00:00:04]} Nbd7
{[%clk 00:09:51]} {[%emt 00:00:01]} 9. Be3 {[%clk 00:09:32]} {[%emt 00:00:05]}
e6 {[%clk 00:09:41]} {[%emt 00:00:10]} 10. Qd2 {[%clk 00:09:24]} {[%emt
00:00:08]} c5 {[%clk 00:09:27]} {[%emt 00:00:14]} 11. dxc5 {[%clk 00:09:14]}
{[%emt 00:00:10]} Nxc5 {[%clk 00:09:25]} {[%emt 00:00:03]} 12. Qxd6 {[%clk
00:09:00]} {[%emt 00:00:13]} Bxd6 {[%clk 00:09:23]} {[%emt 00:00:02]} 13. Rad1
{[%clk 00:08:56]} {[%emt 00:00:03]} Be7 {[%clk 00:09:06]} {[%emt 00:00:17]} 14.
Ne5 {[%clk 00:08:53]} {[%emt 00:00:04]} Nd5 {[%clk 00:08:48]} {[%emt 00:00:18]}
15. Nxd5 {[%clk 00:08:47]} {[%emt 00:00:06]} Bxd5 {[%clk 00:08:47]} {[%emt
00:00:01]} 16. b3 {[%clk 00:08:31]} {[%emt 00:00:16]} O-O {[%clk 00:08:30]}
{[%emt 00:00:17]} 17. Bxc5 {[%clk 00:08:28]} {[%emt 00:00:03]} Bxc5 {[%clk
00:08:26]} {[%emt 00:00:04]} 18. Nd7 {[%clk 00:08:27]} Rfc8 {[%clk 00:08:19]}
{[%emt 00:00:07]} 19. b4 {[%clk 00:08:20]} {[%emt 00:00:07]} Ba7 {[%clk
00:07:51]} {[%emt 00:00:27]} 20. a4 {[%clk 00:08:16]} {[%emt 00:00:05]} Rd8
{[%clk 00:07:28]} {[%emt 00:00:23]} 21. Nc5 {[%clk 00:07:44]} {[%emt 00:00:32]}
Bxc5 {[%clk 00:07:24]} {[%emt 00:00:03]} 22. bxc5 {[%clk 00:07:42]} {[%emt
00:00:02]} bxa4 {[%clk 00:06:49]} {[%emt 00:00:35]} 23. Ra1 {[%clk 00:07:40]}
{[%emt 00:00:02]} Rdc8 {[%clk 00:06:46]} {[%emt 00:00:03]} 24. Rxa4 {[%clk
00:07:35]} {[%emt 00:00:06]} Rxc5 {[%clk 00:06:45]} {[%emt 00:00:02]} 25. Bd3
{[%clk 00:07:24]} {[%emt 00:00:10]} Bc6 {[%clk 00:06:32]} {[%emt 00:00:12]} 26.
Ra3 {[%clk 00:07:04]} {[%emt 00:00:20]} Bb5 {[%clk 00:06:17]} {[%emt 00:00:15]}
27. Be4 {[%clk 00:06:56]} {[%emt 00:00:08]} Bxf1 {[%clk 00:06:08]} {[%emt
00:00:09]} 28. Bxa8 {[%clk 00:06:54]} {[%emt 00:00:03]} Bb5 {[%clk 00:06:00]}
{[%emt 00:00:08]} 29. Ra2 {[%clk 00:06:34]} {[%emt 00:00:20]} g6 {[%clk
00:05:51]} {[%emt 00:00:08]} 30. Bb7 {[%clk 00:06:29]} {[%emt 00:00:06]} a5
{[%clk 00:05:43]} {[%emt 00:00:08]} 31. Rxa5 {[%clk 00:06:23]} {[%emt
00:00:06]} Rf5 {[%clk 00:05:11]} {[%emt 00:00:32]} 32. Be4 {[%clk 00:06:14]}
{[%emt 00:00:05]} Rc5 {[%clk 00:04:52]} {[%emt 00:00:22]} 33. Bd3 {[%clk
00:06:06]} {[%emt 00:00:07]} Bxd3 {[%clk 00:03:32]} {[%emt 00:01:22]} 34. Rxc5
{[%clk 00:06:04]} {[%emt 00:00:02]} Be4 {[%clk 00:03:28]} {[%emt 00:00:04]} 35.
f3 {[%clk 00:06:02]} {[%emt 00:00:02]} Bd5 {[%clk 00:03:24]} {[%emt 00:00:04]}
36. c4 {[%clk 00:05:59]} {[%emt 00:00:03]} Bb7 {[%clk 00:03:19]} {[%emt
00:00:04]} 37. Rc7 {[%clk 00:05:55]} {[%emt 00:00:04]} Ba6 {[%emt 00:00:11]} 38.
c5 Kf8 {[%clk 00:03:00]} {[%emt 00:00:08]} 39. Ra7 {[%clk 00:05:54]} {[%emt
00:00:01]} Bb5 {[%clk 00:02:51]} {[%emt 00:00:08]} 40. Kf2 {[%clk 00:05:47]}
{[%emt 00:00:07]} h5 {[%clk 00:02:43]} {[%emt 00:00:08]} 41. h4 {[%clk
00:05:44]} {[%emt 00:00:03]} Kg7 {[%clk 00:02:40]} {[%emt 00:00:04]} 42. Ke3
{[%clk 00:05:42]} {[%emt 00:00:01]} e5 {[%clk 00:02:32]} {[%emt 00:00:08]} 43.
Rb7 {[%clk 00:05:32]} {[%emt 00:00:11]} Bc6 {[%clk 00:02:25]} {[%emt 00:00:07]}
44. Rb6 {[%clk 00:05:30]} {[%emt 00:00:02]} Bd5 {[%clk 00:02:20]} {[%emt
00:00:05]} 45. c6 {[%clk 00:05:27]} {[%emt 00:00:02]} f5 {[%clk 00:02:12]}
{[%emt 00:00:09]} 46. c7 {[%clk 00:05:24]} {[%emt 00:00:03]} f4+ {[%clk
00:02:08]} {[%emt 00:00:04]} 47. Kf2 {[%clk 00:05:21]} {[%emt 00:00:03]} e4
{[%clk 00:01:56]} {[%emt 00:00:12]} 48. fxe4 {[%clk 00:05:15]} {[%emt
00:00:06]} Bxe4 {[%clk 00:01:52]} {[%emt 00:00:04]} 49. c8=Q {[%clk 00:05:12]}
{[%emt 00:00:02]} 1-0

[Event "Božićni turnir u VaraždinskimToplicama 26.12.2025."]
[Site "Varazdinske Toplice, Croatia"]
[Date "2025.12.26"]
[Round "2.14"]
[White "Kodric, Vladimir"]
[Black "Bozinovic, Mario"]
[Result "1-0"]
[TimeControl "10"]
[WhiteFideId "14604264"]
[BlackFideId "14561360"]
[WhiteElo "1920"]
[BlackElo "1607"]

1. d4 {[%clk 00:09:59]} f5 {[%clk 00:09:55]} {[%emt 00:00:05]} 2. c3 {[%clk
00:09:57]} {[%emt 00:00:02]} Nf6 {[%clk 00:09:54]} {[%emt 00:00:02]} 3. Nf3
{[%clk 00:09:55]} {[%emt 00:00:02]} g6 {[%clk 00:09:53]} 4. Bf4 {[%clk
00:09:53]} {[%emt 00:00:01]} Bg7 {[%clk 00:09:52]} 5. h3 {[%clk 00:09:52]}
{[%emt 00:00:02]} O-O {[%clk 00:09:50]} {[%emt 00:00:02]} 6. e3 {[%clk
00:09:51]} {[%emt 00:00:01]} d6 {[%clk 00:09:48]} {[%emt 00:00:03]} 7. Be2
{[%clk 00:09:50]} Qe8 {[%clk 00:09:46]} {[%emt 00:00:02]} 8. O-O {[%clk
00:09:44]} {[%emt 00:00:05]} Nh5 {[%clk 00:09:43]} {[%emt 00:00:03]} 9. Bh2
{[%clk 00:09:43]} {[%emt 00:00:01]} e5 {[%clk 00:09:40]} {[%emt 00:00:04]} 10.
dxe5 {[%clk 00:09:38]} {[%emt 00:00:04]} dxe5 {[%clk 00:09:39]} {[%emt
00:00:01]} 11. Qd5+ {[%clk 00:09:21]} {[%emt 00:00:17]} Kh8 {[%clk 00:08:37]}
{[%emt 00:01:02]} 12. Bxe5 {[%clk 00:09:18]} {[%emt 00:00:03]} Nf6 {[%clk
00:08:30]} {[%emt 00:00:07]} 13. Qd1 {[%clk 00:09:02]} {[%emt 00:00:17]} c6
{[%clk 00:08:11]} {[%emt 00:00:19]} 14. Nbd2 {[%clk 00:08:58]} {[%emt
00:00:03]} Nbd7 {[%clk 00:08:10]} {[%emt 00:00:02]} 15. Bh2 {[%clk 00:08:54]}
{[%emt 00:00:04]} Nc5 {[%clk 00:07:14]} {[%emt 00:00:56]} 16. Nb3 {[%clk
00:08:44]} {[%emt 00:00:10]} Ne6 {[%clk 00:06:54]} {[%emt 00:00:20]} 17. Qc2
{[%clk 00:08:28]} {[%emt 00:00:15]} Nd5 {[%clk 00:05:31]} {[%emt 00:01:23]} 18.
Nbd4 {[%clk 00:07:51]} {[%emt 00:00:37]} f4 {[%clk 00:05:19]} {[%emt 00:00:12]}
19. e4 {[%clk 00:07:42]} {[%emt 00:00:08]} Nxd4 {[%clk 00:03:56]} {[%emt
00:01:25]} 20. cxd4 {[%clk 00:07:35]} {[%emt 00:00:06]} Nb6 {[%clk 00:03:22]}
{[%emt 00:00:34]} 21. Bd3 {[%clk 00:07:16]} {[%emt 00:00:18]} h6 {[%clk
00:02:37]} {[%emt 00:00:46]} 22. Rad1 {[%clk 00:07:08]} {[%emt 00:00:07]} g5
{[%clk 00:02:32]} {[%emt 00:00:06]} 23. Rfe1 {[%clk 00:07:01]} {[%emt
00:00:07]} Qh5 {[%clk 00:02:31]} {[%emt 00:00:02]} 24. Be2 {[%clk 00:06:43]}
{[%emt 00:00:18]} g4 {[%clk 00:02:25]} {[%emt 00:00:05]} 25. hxg4 {[%clk
00:06:36]} {[%emt 00:00:07]} Bxg4 {[%clk 00:02:25]} {[%emt 00:00:01]} 26. e5
{[%clk 00:05:38]} {[%emt 00:00:58]} Rae8 {[%clk 00:02:14]} {[%emt 00:00:11]} 27.
Kh1 {[%clk 00:05:17]} {[%emt 00:00:20]} Nd5 {[%clk 00:01:49]} {[%emt 00:00:25]}
28. Ng1 {[%clk 00:05:14]} {[%emt 00:00:03]} Rxe5 {[%clk 00:01:02]} {[%emt
00:00:48]} 29. dxe5 {[%clk 00:05:10]} {[%emt 00:00:03]} f3 {[%clk 00:00:53]}
{[%emt 00:00:09]} 30. Bxf3 {[%clk 00:05:07]} {[%emt 00:00:03]} Bxf3 {[%clk
00:00:15]} {[%emt 00:00:39]} 31. Nxf3 {[%clk 00:05:05]} {[%emt 00:00:02]} Rxf3
{[%clk 00:00:14]} 32. gxf3 Qxf3+ 33. Kg1 {[%clk 00:04:59]} {[%emt 00:00:02]}
Qg4+ {[%clk 00:00:12]} 34. Bg3 {[%clk 00:04:57]} {[%emt 00:00:02]} h5 {[%clk
00:00:09]} {[%emt 00:00:04]} 35. Qe4 {[%clk 00:04:49]} {[%emt 00:00:07]} Nf4
{[%emt 00:00:14]} 1-0

[Event "Božićni turnir u VaraždinskimToplicama 26.12.2025."]
[Site "Varazdinske Toplice, Croatia"]
[Date "2025.12.26"]
[Round "2.15"]
[White "Pucan, Vlado"]
[Black "Srsan, Matija"]
[Result "0-1"]
[TimeControl "10"]
[WhiteFideId "14568209"]
[BlackFideId "14520001"]
[WhiteElo "1638"]
[BlackElo "1942"]

1. e4 {[%clk 00:09:59]} {[%emt 00:00:01]} c5 {[%clk 00:09:58]} {[%emt
00:00:02]} 2. Ne2 {[%clk 00:09:57]} {[%emt 00:00:01]} e6 {[%clk 00:09:55]}
{[%emt 00:00:04]} 3. d3 {[%clk 00:09:54]} {[%emt 00:00:03]} Nc6 {[%clk
00:09:52]} {[%emt 00:00:03]} 4. c3 {[%clk 00:09:52]} {[%emt 00:00:02]} d5
{[%clk 00:09:49]} {[%emt 00:00:03]} 5. exd5 {[%clk 00:09:47]} {[%emt 00:00:05]}
exd5 {[%clk 00:09:47]} {[%emt 00:00:02]} 6. d4 {[%clk 00:09:39]} {[%emt
00:00:08]} c4 {[%clk 00:09:10]} {[%emt 00:00:36]} 7. Be3 {[%clk 00:09:37]}
{[%emt 00:00:02]} Bg4 {[%clk 00:09:04]} {[%emt 00:00:07]} 8. Nd2 {[%clk
00:09:30]} {[%emt 00:00:06]} Bd6 {[%clk 00:08:54]} {[%emt 00:00:11]} 9. Qc2
{[%clk 00:09:24]} {[%emt 00:00:05]} Nge7 {[%clk 00:08:40]} {[%emt 00:00:14]} 10.
Nf3 {[%clk 00:08:48]} {[%emt 00:00:37]} O-O {[%clk 00:08:26]} {[%emt 00:00:14]}
11. h3 {[%clk 00:08:47]} {[%emt 00:00:01]} Bf5 {[%clk 00:08:25]} {[%emt
00:00:01]} 12. Qd2 {[%clk 00:08:41]} {[%emt 00:00:06]} Re8 {[%clk 00:08:14]}
{[%emt 00:00:12]} 13. Ng3 {[%clk 00:08:22]} {[%emt 00:00:18]} Bxg3 {[%clk
00:08:06]} {[%emt 00:00:08]} 14. fxg3 {[%clk 00:08:20]} {[%emt 00:00:01]} Bg6
{[%clk 00:07:21]} {[%emt 00:00:45]} 15. Be2 {[%clk 00:08:16]} {[%emt 00:00:04]}
Nf5 {[%clk 00:07:12]} {[%emt 00:00:10]} 16. Bf2 {[%clk 00:08:02]} {[%emt
00:00:13]} Qe7 {[%clk 00:07:09]} {[%emt 00:00:04]} 17. g4 {[%clk 00:07:41]}
{[%emt 00:00:21]} Nd6 {[%clk 00:07:05]} {[%emt 00:00:04]} 18. Kf1 {[%clk
00:07:32]} {[%emt 00:00:08]} Ne4 {[%clk 00:07:00]} {[%emt 00:00:05]} 19. Qf4
{[%clk 00:07:16]} {[%emt 00:00:15]} Nxf2 {[%clk 00:06:56]} {[%emt 00:00:05]} 20.
Kxf2 {[%clk 00:06:59]} {[%emt 00:00:18]} Qxe2+ {[%clk 00:06:53]} {[%emt
00:00:03]} 21. Kg3 {[%clk 00:06:58]} Qe3 {[%clk 00:06:19]} {[%emt 00:00:35]} 22.
Qd6 {[%clk 00:06:43]} {[%emt 00:00:15]} Qe6 {[%clk 00:06:15]} {[%emt 00:00:04]}
23. Qf4 {[%clk 00:06:35]} {[%emt 00:00:08]} Be4 {[%clk 00:05:59]} {[%emt
00:00:16]} 24. Ng5 {[%clk 00:06:25]} {[%emt 00:00:09]} Qf6 {[%clk 00:05:47]}
{[%emt 00:00:13]} 25. Rhf1 {[%clk 00:06:00]} {[%emt 00:00:24]} Qxf4+ {[%clk
00:05:45]} {[%emt 00:00:03]} 26. Rxf4 {[%clk 00:05:57]} {[%emt 00:00:02]} f6
{[%clk 00:05:41]} {[%emt 00:00:05]} 27. Nxe4 {[%clk 00:05:47]} {[%emt
00:00:10]} Rxe4 {[%clk 00:05:39]} {[%emt 00:00:02]} 28. Rf3 {[%clk 00:05:43]}
{[%emt 00:00:03]} Rae8 {[%clk 00:05:37]} {[%emt 00:00:03]} 29. Raf1 {[%clk
00:05:33]} {[%emt 00:00:10]} Re3 {[%clk 00:05:35]} {[%emt 00:00:02]} 30. R1f2
{[%clk 00:05:26]} {[%emt 00:00:07]} g6 {[%clk 00:05:17]} {[%emt 00:00:18]} 31.
h4 {[%clk 00:05:23]} {[%emt 00:00:02]} Kg7 {[%clk 00:05:14]} {[%emt 00:00:03]}
32. Kf4 {[%clk 00:05:03]} {[%emt 00:00:20]} R8e4+ {[%clk 00:05:11]} {[%emt
00:00:04]} 33. Kg3 {[%clk 00:05:02]} Ne7 {[%clk 00:05:07]} {[%emt 00:00:05]} 34.
Kh3 {[%clk 00:04:39]} {[%emt 00:00:22]} f5 {[%clk 00:04:56]} {[%emt 00:00:12]}
35. g5 {[%clk 00:04:28]} {[%emt 00:00:10]} Rxf3+ {[%clk 00:04:50]} {[%emt
00:00:07]} 36. gxf3 {[%clk 00:04:23]} {[%emt 00:00:03]} Re1 {[%clk 00:04:40]}
{[%emt 00:00:11]} 37. Kg3 {[%clk 00:04:16]} {[%emt 00:00:08]} Kf7 {[%clk
00:04:38]} {[%emt 00:00:02]} 38. Kf4 {[%clk 00:04:07]} {[%emt 00:00:09]} Nc6
{[%clk 00:04:34]} {[%emt 00:00:04]} 39. Rh2 {[%clk 00:03:48]} {[%emt 00:00:17]}
Nd8 {[%clk 00:04:33]} {[%emt 00:00:03]} 40. h5 {[%clk 00:03:47]} Ne6+ {[%clk
00:04:31]} {[%emt 00:00:01]} 41. Kg3 {[%clk 00:03:44]} {[%emt 00:00:03]} Nxg5
{[%clk 00:04:22]} {[%emt 00:00:10]} 42. hxg6+ {[%clk 00:03:40]} {[%emt
00:00:04]} Kxg6 {[%clk 00:04:16]} {[%emt 00:00:06]} 43. Kf4 {[%clk 00:03:29]}
{[%emt 00:00:11]} Ne6+ {[%clk 00:04:11]} {[%emt 00:00:05]} 44. Kg3 {[%clk
00:03:24]} {[%emt 00:00:04]} f4+ {[%clk 00:04:07]} {[%emt 00:00:05]} 45. Kf2
{[%clk 00:03:20]} {[%emt 00:00:04]} Rb1 {[%clk 00:03:59]} {[%emt 00:00:07]} 46.
Rg2+ {[%clk 00:03:09]} {[%emt 00:00:11]} Ng5 {[%clk 00:03:54]} {[%emt
00:00:06]} 47. Rg4 {[%clk 00:02:53]} {[%emt 00:00:16]} h5 {[%clk 00:03:51]}
{[%emt 00:00:03]} 48. Rh4 {[%clk 00:02:48]} {[%emt 00:00:05]} Rxb2+ {[%clk
00:03:47]} {[%emt 00:00:04]} 49. Kf1 {[%clk 00:02:42]} {[%emt 00:00:05]} Ne6
{[%clk 00:03:36]} {[%emt 00:00:12]} 50. Rh3 {[%clk 00:02:29]} {[%emt 00:00:12]}
Rxa2 {[%clk 00:03:33]} {[%emt 00:00:03]} 51. Rh4 {[%clk 00:02:14]} {[%emt
00:00:15]} a5 {[%clk 00:03:32]} {[%emt 00:00:02]} 52. Ke1 {[%clk 00:02:09]}
{[%emt 00:00:04]} a4 {[%clk 00:03:31]} {[%emt 00:00:02]} 53. Kd1 {[%clk
00:02:07]} {[%emt 00:00:02]} a3 {[%clk 00:03:29]} {[%emt 00:00:02]} 54. Kc1
{[%clk 00:02:07]} Rf2 {[%clk 00:03:18]} {[%emt 00:00:11]} 55. Kb1 {[%clk
00:02:01]} {[%emt 00:00:06]} Rxf3 {[%clk 00:03:14]} {[%emt 00:00:04]} 56. Rh1
{[%clk 00:01:56]} {[%emt 00:00:05]} Rxc3 {[%clk 00:03:10]} {[%emt 00:00:04]} 57.
Re1 {[%clk 00:01:54]} {[%emt 00:00:01]} Re3 {[%clk 00:03:04]} {[%emt 00:00:07]}
58. Rg1+ {[%clk 00:01:52]} {[%emt 00:00:02]} Kf5 {[%clk 00:03:02]} {[%emt
00:00:02]} 59. Rg8 {[%clk 00:01:46]} {[%emt 00:00:06]} Nxd4 {[%clk 00:02:59]}
{[%emt 00:00:03]} 60. Rf8+ {[%clk 00:01:40]} {[%emt 00:00:05]} Ke4 {[%clk
00:02:57]} {[%emt 00:00:03]} 61. Re8+ {[%clk 00:01:34]} {[%emt 00:00:05]} Kd3
{[%clk 00:02:55]} {[%emt 00:00:02]} 62. Ka2 {[%clk 00:01:31]} {[%emt 00:00:03]}
Rxe8 {[%clk 00:02:50]} {[%emt 00:00:05]} 0-1

[Event "Božićni turnir u VaraždinskimToplicama 26.12.2025."]
[Site "Varazdinske Toplice, Croatia"]
[Date "2025.12.26"]
[Round "3.1"]
[White "Sardi, Darko"]
[Black "Segovic, Goran"]
[Result "0-1"]
[TimeControl "10"]
[WhiteFideId "14511100"]
[BlackFideId "14508842"]
[WhiteElo "1905"]
[BlackElo "2324"]

1. e4 {[%clk 00:09:57]} {[%emt 00:00:02]} e5 {[%clk 00:10:00]} {[%emt
00:00:02]} 2. Nf3 {[%clk 00:09:56]} {[%emt 00:00:01]} Nc6 {[%clk 00:09:59]}
{[%emt 00:00:01]} 3. Bc4 {[%clk 00:09:50]} {[%emt 00:00:05]} Nf6 {[%clk
00:09:57]} {[%emt 00:00:02]} 4. d3 {[%clk 00:09:47]} {[%emt 00:00:03]} Be7
{[%clk 00:09:56]} {[%emt 00:00:02]} 5. O-O {[%clk 00:09:45]} {[%emt 00:00:02]}
O-O {[%clk 00:09:54]} {[%emt 00:00:01]} 6. a3 {[%clk 00:09:41]} {[%emt
00:00:04]} d5 {[%clk 00:09:53]} {[%emt 00:00:01]} 7. exd5 {[%clk 00:09:36]}
{[%emt 00:00:05]} Nxd5 {[%clk 00:09:52]} {[%emt 00:00:02]} 8. h3 {[%clk
00:09:29]} {[%emt 00:00:06]} Nb6 {[%clk 00:09:46]} {[%emt 00:00:06]} 9. Bb3
{[%clk 00:09:27]} {[%emt 00:00:02]} Kh8 {[%clk 00:09:37]} {[%emt 00:00:09]} 10.
Re1 {[%clk 00:09:23]} {[%emt 00:00:04]} Bd6 {[%clk 00:09:27]} {[%emt 00:00:10]}
11. Nc3 {[%clk 00:09:20]} {[%emt 00:00:03]} f5 {[%clk 00:08:58]} {[%emt
00:00:29]} 12. Ng5 {[%clk 00:09:07]} {[%emt 00:00:13]} Qe8 {[%clk 00:08:26]}
{[%emt 00:00:33]} 13. Nb5 {[%clk 00:08:51]} {[%emt 00:00:16]} h6 {[%clk
00:08:04]} {[%emt 00:00:22]} 14. Nf3 {[%clk 00:08:48]} {[%emt 00:00:03]} Qd8
{[%clk 00:07:24]} {[%emt 00:00:39]} 15. Nxd6 {[%clk 00:08:33]} {[%emt
00:00:15]} cxd6 {[%clk 00:07:23]} {[%emt 00:00:02]} 16. Bd2 {[%clk 00:08:27]}
{[%emt 00:00:06]} Qf6 {[%clk 00:07:10]} {[%emt 00:00:12]} 17. Bc3 {[%clk
00:08:22]} {[%emt 00:00:05]} Ne7 {[%clk 00:06:43]} {[%emt 00:00:27]} 18. Rb1
{[%clk 00:07:51]} {[%emt 00:00:31]} Nbd5 {[%clk 00:06:35]} {[%emt 00:00:09]} 19.
Bd2 {[%clk 00:07:48]} {[%emt 00:00:02]} Bd7 {[%clk 00:06:28]} {[%emt 00:00:07]}
20. c4 {[%clk 00:07:42]} {[%emt 00:00:07]} Nc7 {[%clk 00:06:17]} {[%emt
00:00:10]} 21. Bc3 {[%clk 00:07:39]} {[%emt 00:00:03]} b6 {[%clk 00:06:05]}
{[%emt 00:00:12]} 22. Qe2 {[%clk 00:07:16]} {[%emt 00:00:24]} Ng6 {[%clk
00:06:01]} {[%emt 00:00:04]} 23. Bd2 {[%clk 00:07:08]} {[%emt 00:00:07]} Ne6
{[%clk 00:05:55]} {[%emt 00:00:06]} 24. Bd1 {[%clk 00:06:11]} {[%emt 00:00:57]}
Bc6 {[%clk 00:05:53]} {[%emt 00:00:02]} 25. Qf1 {[%clk 00:06:03]} {[%emt
00:00:08]} Ngf4 {[%clk 00:05:32]} {[%emt 00:00:20]} 26. Kh2 {[%clk 00:05:46]}
{[%emt 00:00:18]} Rae8 {[%clk 00:05:29]} {[%emt 00:00:03]} 27. g3 {[%clk
00:05:36]} {[%emt 00:00:11]} Ng6 {[%clk 00:05:07]} {[%emt 00:00:21]} 28. b4
{[%clk 00:05:21]} {[%emt 00:00:16]} Ba8 {[%clk 00:05:01]} {[%emt 00:00:06]} 29.
h4 {[%clk 00:05:04]} {[%emt 00:00:16]} f4 {[%clk 00:04:50]} {[%emt 00:00:11]}
30. gxf4 {[%clk 00:03:41]} {[%emt 00:01:23]} Nxh4 {[%clk 00:04:35]} {[%emt
00:00:15]} 31. Qh3 {[%clk 00:03:17]} {[%emt 00:00:23]} Nxf3+ {[%clk 00:04:29]}
{[%emt 00:00:07]} 32. Bxf3 {[%clk 00:03:16]} {[%emt 00:00:01]} Nxf4 {[%clk
00:04:27]} {[%emt 00:00:02]} 33. Qg3 {[%clk 00:02:58]} {[%emt 00:00:18]} Bxf3
{[%clk 00:04:15]} {[%emt 00:00:13]} 34. Bxf4 {[%clk 00:02:24]} {[%emt
00:00:34]} Qxf4 {[%clk 00:04:12]} {[%emt 00:00:02]} 35. Qxf4 {[%clk 00:02:21]}
{[%emt 00:00:03]} Rxf4 {[%clk 00:04:11]} {[%emt 00:00:02]} 0-1